bitfinex/quotes_SOLUSD_20250520
["timestamp","ask_amount","ask_price","bid_price","bid_amount"]
[1747739547328,6.02591141,165.95,165.87,18.64964886]
[1747739547542,20.51421179,165.9,165.86,18.08]
[1747739547847,20.51421179,165.92,165.84,18.64964886]
[1747739548026,20.51421179,165.89,165.84,18.64964886]
[1747739548439,20.51421179,165.88,165.84,18.64964886]
[1747739548632,6.02881774,165.87,165.84,18.64964886]
[1747739552849,6.0284543,165.88,165.84,18.64964886]
[1747739553053,21.09959006,165.88,165.84,18.64964886]
[1747739554729,41.61380185,165.88,165.83,18.64964886]
[1747739554931,20.51421179,165.87,165.82,18.08]
[1747739556860,21.10213432,165.86,165.82,18.64964886]
[1747739558855,21.10213432,165.86,165.8,19.7311]
[1747739559157,20.51421179,165.85,165.8,36.72964886]
[1747739559743,12.79320362,165.85,165.8,36.72964886]
[1747739560258,64.04124412,165.86,165.8,36.72964886]
[1747739563761,12.79320362,165.85,165.79,18.64964886]
[1747739564060,149.79320362,165.85,165.77,36.72964886]
[1747739564762,21.1046792,165.84,165.77,39.78225817]
[1747739565461,21.1046792,165.84,165.78,18.64964886]
[1747739575349,21.1046792,165.84,165.78,36.72964886]
[1747739581070,21.1046792,165.84,165.79,3.45749151]
[1747739582483,21.1046792,165.84,165.78,36.72964886]
[1747739582859,6.02990834,165.84,165.8,18.64964886]
[1747739583060,6.02918123,165.86,165.8,18.64964886]
[1747739583255,6.02918123,165.86,165.84,18.64964886]
[1747739583473,6.0280909,165.89,165.84,36.72964886]
[1747739583780,6.0280909,165.89,165.88,18.64964886]
[1747739584088,6.02700096,165.92,165.88,18.64964886]
[1747739584273,6.02700096,165.92,165.9,18.64964886]
[1747739584866,15.06726784,165.93,165.9,18.64964886]
[1747739589087,21.08941913,165.96,165.9,18.64964886]
[1747739590173,12.79320362,165.95,165.89,18.08]
[1747739590372,12.79320362,165.94,165.89,18.08]
[1747739590582,12.79320362,165.93,165.88,18.64964886]
[1747739591094,21.09450337,165.92,165.88,18.64964886]
[1747739593183,15.06750241,165.92,165.88,18.64964886]
[1747739593871,15.06750241,165.92,165.87,18.08]
[1747739595698,21.09450337,165.92,165.87,18.08]
[1747739596004,33.88770699,165.92,165.87,18.08]
[1747739596295,33.88770699,165.92,165.84,18.64964886]
[1747739596296,12.79320362,165.9,165.84,18.64964886]
[1747739596598,149.79320362,165.9,165.84,18.64964886]
[1747739597496,12.79320362,165.88,165.82,36.72964886]
[1747739597693,21.09959006,165.88,165.82,36.72964886]
[1747739597895,6.0284543,165.88,165.83,18.64964886]
[1747739598094,6.02772754,165.9,165.83,18.64964886]
[1747739598399,6.02772754,165.9,165.85,18.64964886]
[1747739598806,21.09269676,165.94,165.87,18.64964886]
[1747739598970,21.09269676,165.94,165.87,36.72964886]
[1747739601600,12.79320362,165.91,165.85,18.64964886]
[1747739601898,21.0970464,165.9,165.85,18.64964886]
[1747739602099,12.79320362,165.88,165.83,36.72964886]
[1747739602285,12.79320362,165.88,165.83,18.08]
[1747739602485,12.79320362,165.87,165.81,26.0]
[1747739603105,12.79320362,165.86,165.79,36.72964886]
[1747739603295,12.79320362,165.86,165.81,18.64964886]
[1747739603500,12.79320362,165.85,165.8,18.64964886]
[1747739604006,21.1046792,165.84,165.8,18.64964886]
[1747739604699,6.02990834,165.84,165.83,18.64964886]
[1747739605002,6.02918123,165.86,165.83,18.64964886]
[1747739605206,5.95274911,165.86,165.83,18.64964886]
[1747739605384,6.0280909,165.89,165.83,18.64964886]
[1747739605588,6.0280909,165.89,165.85,18.64964886]
[1747739606519,21.09740235,165.9,165.85,18.64964886]
[1747739609621,6.02736423,165.91,165.85,18.64964886]
[1747739610414,6.02736423,165.91,165.85,20.20914886]
[1747739611716,6.02700096,165.92,165.85,20.20914886]
[1747739612999,21.09450337,165.92,165.85,20.20914886]
[1747739620224,12.79320362,165.9,165.85,18.64964886]
[1747739620607,12.79320362,165.91,165.85,18.64964886]
[1747739620817,149.79320362,165.91,165.85,18.64964886]
[1747739621221,137.0,165.91,165.85,18.64964886]
[1747739622104,6.02772754,165.9,165.85,18.64964886]
[1747739622807,12.79320362,165.88,165.81,1.5531]
[1747739623014,38.79320362,165.87,165.8,18.64964886]
[1747739623533,26.0,165.87,165.8,18.64964886]
[1747739623824,26.0,165.87,165.82,18.64964886]
[1747739624842,21.10213432,165.86,165.82,18.64964886]
[1747739625017,21.10213432,165.86,165.81,3.45345151]
[1747739625221,12.79320362,165.85,165.8,18.64964886]
[1747739626733,21.1046792,165.84,165.8,18.64964886]
[1747739627239,21.1046792,165.84,165.78,18.64964886]
[1747739627424,21.1046792,165.84,165.78,36.72964886]
[1747739628138,21.1046792,165.84,165.8,18.64964886]
[1747739629441,21.1046792,165.84,165.78,36.72964886]
[1747739630350,21.1046792,165.84,165.78,62.72964886]
[1747739632134,15.07477086,165.84,165.78,62.72964886]
[1747739633029,15.07477086,165.84,165.79,18.64964886]
[1747739633537,27.86797448,165.84,165.79,18.64964886]
[1747739635141,33.89788282,165.84,165.79,18.64964886]
[1747739635936,21.1046792,165.84,165.79,18.64964886]
[1747739640049,51.25422092,165.84,165.79,18.64964886]
[1747739641149,64.04742454,165.84,165.75,19.26]
[1747739641334,201.04742454,165.84,165.77,18.64964886]
[1747739644265,12.79320362,165.83,165.77,18.64964886]
[1747739644863,21.10722469,165.82,165.77,18.64964886]
[1747739648136,15.07658907,165.82,165.77,18.64964886]
[1747739649047,6.03027196,165.83,165.76,26.0]
[1747739649256,12.79320362,165.82,165.76,26.0]
[1747739649639,12.79320362,165.81,165.76,26.0]
[1747739650327,21.1097708,165.8,165.76,26.0]
[1747739650523,21.1097708,165.8,165.75,36.72964886]
[1747739652738,15.07840772,165.8,165.75,36.72964886]
[1747739656964,15.07840772,165.8,165.75,18.64964886]
[1747739657152,15.07840772,165.8,165.75,36.72964886]
[1747739657460,15.07840772,165.8,165.75,18.64964886]
[1747739657662,15.07840772,165.8,165.75,36.72964886]
[1747739660369,152.07840772,165.8,165.73,1.5675]
[1747739660662,12.79320362,165.78,165.72,19.34]
[1747739660867,149.79320362,165.78,165.72,19.34]
[1747739661060,149.79320362,165.78,165.71,36.72964886]
[1747739661642,149.79320362,165.78,165.72,3.45352231]
[1747739662581,21.11359111,165.77,165.72,3.45352231]
[1747739662944,21.11359111,165.77,165.71,36.72964886]
[1747739664986,6.0324546,165.77,165.71,36.72964886]
[1747739665195,6.0324546,165.77,165.71,42.76427238]
[1747739665471,6.0324546,165.77,165.73,18.64964886]
[1747739667271,21.11055001,165.8,165.74,3.4538226]
[1747739667468,12.79320362,165.75,165.74,3.4538226]
[1747739668673,12.79320362,165.75,165.68,18.64964886]
[1747739668846,12.79320362,165.76,165.69,18.64964886]
[1747739669375,21.1174128,165.74,165.67,18.64964886]
[1747739669575,21.1174128,165.74,165.67,36.72964886]
[1747739670071,21.1174128,165.74,165.68,3.45673248]
[1747739670859,33.91061642,165.74,165.68,3.45673248]
[1747739671757,33.91061642,165.74,165.67,36.72964886]
[1747739672773,21.1174128,165.74,165.67,36.72964886]
[1747739674370,12.79320362,165.72,165.67,18.64964886]
[1747739674571,12.79320362,165.71,165.67,18.64964886]
[1747739675478,33.913165,165.72,165.67,18.64964886]
[1747739677188,33.913165,165.72,165.65,38.9226]
[1747739677189,12.79320362,165.7,165.65,19.28]
[1747739677564,12.79320362,165.7,165.64,36.74964886]
[1747739679191,21.12378538,165.69,165.64,36.74964886]
[1747739680383,15.08841813,165.69,165.64,36.74964886]
[1747739681081,12.79320362,165.66,165.6,19.28]
[1747739681288,12.79320362,165.65,165.59,36.74964886]
[1747739681468,12.79320362,165.65,165.59,18.64964886]
[1747739681786,12.79320362,165.65,165.57,19.7559]
[1747739681972,12.79320362,165.65,165.58,18.64964886]
[1747739682174,12.79320362,165.64,165.58,18.64964886]
[1747739682369,51.30681474,165.67,165.58,18.64964886]
[1747739682569,12.79320362,165.66,165.58,18.64964886]
[1747739683493,12.79320362,165.65,165.58,18.64964886]
[1747739683865,21.13016179,165.64,165.58,18.64964886]
[1747739684186,51.31610721,165.64,165.58,18.64964886]
[1747739684376,64.10931083,165.64,165.58,26.0]
[1747739686385,21.13016179,165.64,165.58,26.0]
[1747739688173,1.5883,165.63,165.55,18.64964886]
[1747739688480,12.79320362,165.56,165.45,19.6065]
[1747739688682,18.1,165.57,165.45,19.6065]
[1747739688986,18.1,165.57,165.45,27.5065]
[1747739689375,18.1,165.57,165.46,18.64964886]
[1747739689376,12.79320362,165.53,165.46,18.64964886]
[1747739689587,12.79320362,165.54,165.46,18.64964886]
[1747739689884,18.1,165.57,165.45,27.5065]
[1747739690087,18.1,165.57,165.46,18.64964886]
[1747739690383,21.14164904,165.55,165.46,18.64964886]
[1747739690586,6.04047115,165.55,165.5,18.64964886]
[1747739690765,6.04047115,165.55,165.52,18.64964886]
[1747739691298,6.04047115,165.55,165.51,18.1]
[1747739692168,6.04047115,165.55,165.52,18.64964886]
[1747739692379,81.51681661,165.61,165.52,18.64964886]
[1747739692576,21.13398949,165.61,165.52,18.64964886]
[1747739692777,21.13398949,165.61,165.52,44.64964886]
[1747739692978,21.13398949,165.61,165.53,1.6074]
[1747739693812,33.92719311,165.61,165.53,1.6074]
[1747739693970,21.13398949,165.61,165.53,1.6074]
[1747739694990,21.13398949,165.61,165.54,18.64964886]
[1747739695366,33.92719311,165.61,165.54,18.64964886]
[1747739695888,21.13398949,165.61,165.54,18.64964886]
[1747739696191,26.0,165.65,165.54,18.64964886]
[1747739696192,6.03718908,165.64,165.57,26.0]
[1747739696491,6.03718908,165.64,165.58,36.74964886]
[1747739696668,6.03646021,165.66,165.58,36.74964886]
[1747739697072,33.92081437,165.66,165.58,36.74964886]
[1747739697284,12.79320362,165.65,165.58,36.74964886]
[1747739698875,6.03718908,165.64,165.58,36.74964886]
[1747739699870,6.03536725,165.69,165.58,36.74964886]
[1747739700065,20.51691378,165.67,165.58,36.74964886]
[1747739700281,20.51691378,165.68,165.58,36.74964886]
[1747739700975,20.51691378,165.67,165.58,36.74964886]
[1747739701174,51.30062164,165.69,165.58,36.74964886]
[1747739701675,71.81753542,165.69,165.58,36.74964886]
[1747739701876,51.30062164,165.69,165.58,36.74964886]
[1747739702382,21.12378538,165.69,165.62,18.64964886]
[1747739702585,21.12378538,165.69,165.62,20.25984886]
[1747739703296,6.03536725,165.69,165.62,20.25984886]
[1747739704088,15.08635663,165.72,165.66,18.64964886]
[1747739704289,6.03391057,165.73,165.66,18.64964886]
[1747739704593,20.51691378,165.72,165.65,18.1]
[1747739704893,21.11868701,165.73,165.66,18.64964886]
[1747739705073,21.11868701,165.73,165.66,44.64964886]
[1747739706198,15.08477644,165.73,165.66,44.64964886]
[1747739707295,35.60169022,165.73,165.66,18.64964886]
[1747739708297,71.80515367,165.73,165.66,18.64964886]
[1747739708823,21.11868701,165.73,165.66,18.64964886]
[1747739709102,21.11868701,165.73,165.65,18.1]
[1747739709103,21.11868701,165.73,165.65,36.74964886]
[1747739709399,20.51691378,165.69,165.62,26.0]
[1747739709597,20.51691378,165.68,165.61,18.64964886]
[1747739709810,20.51691378,165.69,165.61,44.64964886]
[1747739710495,21.12506035,165.68,165.61,44.64964886]
[1747739710698,41.64197413,165.68,165.58,1.5755]
[1747739710898,41.64197413,165.68,165.59,18.64964886]
[1747739710899,20.51691378,165.66,165.59,18.64964886]
[1747739711114,20.51691378,165.64,165.57,18.64964886]
[1747739711398,20.51691378,165.64,165.56,22.64]
[1747739711603,20.51691378,165.63,165.54,1.5149]
[1747739711807,20.51691378,165.63,165.55,18.64964886]
[1747739712304,26.0,165.65,165.55,18.64964886]
[1747739712505,20.51691378,165.67,165.58,26.0]
[1747739712687,81.48237565,165.68,165.59,18.64964886]
[1747739713400,51.303718,165.68,165.59,18.64964886]
[1747739713606,21.12506035,165.68,165.6,18.1]
[1747739714605,15.08932882,165.68,165.6,18.1]
[1747739714999,15.08932882,165.68,165.64,18.64964886]
[1747739715201,6.03500301,165.7,165.64,18.64964886]
[1747739716616,15.08750754,165.7,165.64,18.64964886]
[1747739717319,6.03463882,165.71,165.64,18.64964886]
[1747739717614,6.03463882,165.71,165.68,18.64964886]
[1747739718401,20.51691378,165.69,165.59,18.64964886]
[1747739718714,20.51691378,165.66,165.59,18.64964886]
[1747739719309,51.303718,165.68,165.59,18.64964886]
[1747739719889,71.82063178,165.68,165.59,18.64964886]
[1747739720300,20.51691378,165.67,165.59,18.64964886]
[1747739720506,21.12761075,165.66,165.59,18.64964886]
[1747739722620,20.51691378,165.67,165.59,18.64964886]
[1747739722621,30.17865765,165.68,165.59,18.64964886]
[1747739722937,50.69557143,165.68,165.59,18.64964886]
[1747739723148,20.51691378,165.67,165.59,18.64964886]
[1747739724045,137.0,165.66,165.58,1.5553]
[1747739724233,20.51691378,165.63,165.56,18.64964886]
[1747739724610,20.51691378,165.63,165.55,49.62]
[1747739724912,21.13271343,165.62,165.56,18.64964886]
[1747739725107,21.13271343,165.62,165.54,18.1]
[1747739725108,41.64962721,165.62,165.54,18.1]
[1747739725307,20.51691378,165.6,165.5,41.72]
[1747739725542,20.51691378,165.6,165.5,67.72]
[1747739725736,21.13271343,165.62,165.5,67.72]
[1747739725946,20.51691378,165.61,165.51,18.64964886]
[1747739726372,26.0,165.59,165.49,1.5749]
[1747739726546,26.0,165.58,165.44,7.6917]
[1747739726857,21.14037206,165.56,165.44,1.5913]
[1747739727148,51.34090358,165.56,165.46,26.0]
[1747739727330,20.51691378,165.55,165.45,18.64964886]
[1747739727513,51.34090358,165.56,165.45,18.64964886]
[1747739727737,20.51691378,165.55,165.46,26.0]
[1747739728062,51.34090358,165.56,165.45,18.64964886]
[1747739728063,20.51691378,165.54,165.45,18.64964886]
[1747739728225,51.34090358,165.56,165.45,44.64964886]
[1747739728425,71.85781736,165.56,165.45,44.64964886]
[1747739729154,20.51691378,165.55,165.45,44.64964886]
[1747739729541,20.51691378,165.54,165.45,44.64964886]
[1747739729849,20.51691378,165.51,165.44,19.6913]
[1747739730150,26.0,165.53,165.42,26.0]
[1747739730342,46.51691378,165.53,165.42,26.0]
[1747739730935,21.1454809,165.52,165.43,18.64964886]
[1747739731135,6.0797,165.51,165.39,1.6066]
[1747739731337,6.0797,165.51,165.4,18.64964886]
[1747739731633,21.1454809,165.52,165.44,18.64964886]
[1747739732943,15.10391493,165.52,165.44,18.64964886]
[1747739733851,15.10391493,165.52,165.46,18.64964886]
[1747739734549,41.10391493,165.52,165.43,18.64964886]
[1747739734761,15.10391493,165.52,165.4,18.64964886]
[1747739735070,26.0,165.49,165.4,18.64964886]
[1747739737033,6.04302634,165.48,165.4,18.64964886]
[1747739737465,21.1505922,165.48,165.4,18.64964886]
[1747739737864,21.1505922,165.48,165.4,44.64964886]
[1747739738073,6.04302634,165.48,165.4,50.69555072]
[1747739738763,6.04302634,165.48,165.44,18.64964886]
[1747739738949,71.306831,165.54,165.46,18.64964886]
[1747739739275,21.14420346,165.53,165.46,18.64964886]
[1747739739853,20.51691378,165.52,165.45,18.12]
[1747739741381,1.6367,165.5,165.4,18.64964886]
[1747739741555,51.3564135,165.51,165.4,18.64964886]
[1747739741753,26.0,165.5,165.4,18.64964886]
[1747739743351,21.14931414,165.49,165.4,18.64964886]
[1747739744178,21.14931414,165.49,165.41,26.0]
[1747739745261,21.1454809,165.52,165.43,44.64964886]
[1747739745461,21.1454809,165.52,165.44,18.12]
[1747739745775,21.1454809,165.52,165.45,18.64964886]
[1747739745984,6.04156597,165.52,165.49,18.64964886]
[1747739747785,15.10187576,165.55,165.49,18.64964886]
[1747739749957,6.0401063,165.56,165.49,18.64964886]
[1747739750487,6.03864734,165.6,165.53,18.64964886]
[1747739751867,6.03791812,165.62,165.53,18.64964886]
[1747739752073,21.13271343,165.62,165.53,18.64964886]
[1747739752674,21.13271343,165.62,165.53,36.76964886]
[1747739752875,41.64962721,165.62,165.53,36.76964886]
[1747739753479,51.32230405,165.62,165.53,36.76964886]
[1747739753768,71.83921783,165.62,165.53,36.76964886]
[1747739754991,51.32230405,165.62,165.53,36.76964886]
[1747739755671,21.13271343,165.62,165.53,36.76964886]
[1747739756271,21.13271343,165.62,165.55,18.64964886]
[1747739758575,51.32230405,165.62,165.55,18.64964886]
[1747739759970,21.13271343,165.62,165.55,18.64964886]
[1747739760378,6.03791812,165.62,165.57,18.64964886]
[1747739760799,137.0,165.63,165.57,18.64964886]
[1747739760800,143.037599,165.63,165.57,18.64964886]
[1747739761098,143.037599,165.63,165.59,18.64964886]
[1747739761099,6.037599,165.63,165.59,18.64964886]
[1747739761429,6.03609585,165.67,165.61,18.64964886]
[1747739761577,6.03609585,165.67,165.63,18.64964886]
[1747739762394,21.12395025,165.69,165.63,18.64964886]
[1747739767388,6.03536725,165.69,165.63,18.64964886]
[1747739767903,6.03536725,165.69,165.67,18.64964886]
[1747739768080,6.03536725,165.69,165.68,18.1]
[1747739768281,6.03536725,165.69,165.68,36.74964886]
[1747739768696,15.08621147,165.72,165.68,36.74964886]
[1747739770195,15.08621147,165.72,165.68,18.1]
[1747739779112,6.03354651,165.74,165.69,18.64964886]
[1747739779414,6.03354651,165.74,165.69,20.16104886]
[1747739779594,21.1174128,165.74,165.69,20.16104886]
[1747739779983,21.1174128,165.74,165.69,46.16104886]
[1747739785499,6.03354651,165.74,165.69,46.16104886]
[1747739786710,15.08194136,165.77,165.69,46.16104886]
[1747739787020,15.08194136,165.77,165.69,52.19641098]
[1747739787203,15.08194136,165.77,165.73,18.64964886]
[1747739787404,15.08194136,165.77,165.74,18.1]
[1747739787605,6.03172688,165.79,165.75,18.64964886]
[1747739788112,21.11104408,165.79,165.75,18.64964886]
[1747739788819,21.11104408,165.79,165.74,18.1]
[1747739789406,33.91213605,165.79,165.74,18.1]
[1747739789919,21.11104408,165.79,165.74,18.1]
[1747739790118,33.91213605,165.79,165.74,18.1]
[1747739791617,12.80109197,165.78,165.74,18.1]
[1747739791921,12.80109197,165.77,165.74,18.1]
[1747739792424,21.11359111,165.77,165.74,18.1]
[1747739792605,33.91468308,165.77,165.74,18.1]
[1747739793523,12.80109197,165.76,165.74,18.1]
[1747739793723,12.80109197,165.76,165.7,44.08]
[1747739794233,21.11359111,165.77,165.71,18.64964886]
[1747739794520,33.91468308,165.77,165.71,18.64964886]
[1747739798012,33.91468308,165.77,165.69,1.5114]
[1747739798214,12.80109197,165.73,165.67,36.72964886]
[1747739798609,21.11996138,165.72,165.67,36.72964886]
[1747739799207,6.03427468,165.72,165.67,36.72964886]
[1747739800942,21.11694267,165.75,165.67,36.72964886]
[1747739801154,21.11694267,165.75,165.67,18.64964886]
[1747739801450,21.11694267,165.75,165.63,44.08]
[1747739801451,12.80109197,165.69,165.63,44.08]
[1747739801618,12.80109197,165.68,165.6,1.6499]
[1747739801809,12.80109197,165.67,165.6,1.6499]
[1747739802122,12.80109197,165.64,165.59,8.42046135]
[1747739802307,12.80109197,165.63,165.59,8.42046135]
[1747739802954,6.03791812,165.62,165.59,8.42046135]
[1747739804231,21.13271343,165.62,165.56,1.6499]
[1747739804422,41.65430891,165.62,165.57,36.74964886]
[1747739804614,41.65430891,165.62,165.57,62.74964886]
[1747739805015,41.65430891,165.62,165.52,1.6403]
[1747739805222,20.52159548,165.61,165.54,36.74964886]
[1747739805419,20.52159548,165.61,165.56,18.64964886]
[1747739805824,20.52159548,165.6,165.54,36.74964886]
[1747739806139,20.52159548,165.57,165.53,18.64964886]
[1747739806326,137.0,165.61,165.53,18.64964886]
[1747739806529,137.0,165.6,165.53,18.64964886]
[1747739807120,6.03901201,165.59,165.53,18.64964886]
[1747739808232,21.13654205,165.59,165.53,18.64964886]
[1747739808428,41.65813753,165.59,165.53,18.64964886]
[1747739808830,41.65813753,165.59,165.47,30.82328283]
[1747739808831,20.52159548,165.54,165.45,18.64964886]
[1747739809026,20.52159548,165.52,165.46,18.1]
[1747739809224,21.14292617,165.54,165.47,18.64964886]
[1747739809435,21.14292617,165.54,165.46,26.0]
[1747739809623,20.52159548,165.52,165.46,26.0]
[1747739809945,51.34710642,165.54,165.46,26.0]
[1747739810122,20.52159548,165.52,165.46,26.0]
[1747739810320,20.52159548,165.51,165.46,26.0]
[1747739810543,51.34710642,165.54,165.46,18.64964886]
[1747739810841,20.52159548,165.51,165.46,18.64964886]
[1747739811141,6.04229607,165.5,165.46,18.64964886]
[1747739812144,21.14803625,165.5,165.45,18.64964886]
[1747739812526,6.04229607,165.5,165.45,18.64964886]
[1747739813244,20.52159548,165.55,165.48,18.64964886]
[1747739813920,15.10059488,165.56,165.48,18.64964886]
[1747739813921,26.56243153,165.54,165.48,18.64964886]
[1747739815543,26.56243153,165.54,165.44,1.5242]
[1747739815544,21.14292617,165.54,165.44,1.5242]
[1747739815842,20.52159548,165.51,165.46,18.64964886]
[1747739816137,20.52159548,165.51,165.44,1.5242]
[1747739816641,20.52159548,165.51,165.45,18.64964886]
[1747739816834,77.34710642,165.54,165.45,18.64964886]
[1747739817031,20.52159548,165.52,165.45,18.64964886]
[1747739817229,77.34710642,165.54,165.45,18.64964886]
[1747739817435,97.8687019,165.54,165.45,18.64964886]
[1747739817748,20.52159548,165.53,165.45,18.64964886]
[1747739817938,77.34710642,165.54,165.45,18.64964886]
[1747739818246,20.52159548,165.52,165.45,18.64964886]
[1747739819043,20.52159548,165.53,165.45,18.64964886]
[1747739819226,20.52159548,165.52,165.45,18.64964886]
[1747739819844,21.1467585,165.51,165.45,18.64964886]
[1747739820162,41.66835398,165.51,165.44,18.64964886]
[1747739820454,21.1467585,165.51,165.44,18.64964886]
[1747739820647,41.66835398,165.51,165.44,18.64964886]
[1747739821031,137.0,165.5,165.44,18.64964886]
[1747739821957,6.04266118,165.49,165.48,18.64964886]
[1747739822261,6.04120099,165.53,165.48,18.64964886]
[1747739822635,21.14420346,165.53,165.5,18.64964886]
[1747739822840,21.14420346,165.53,165.49,18.12]
[1747739823039,20.52159548,165.52,165.49,18.12]
[1747739823642,12.84335374,165.52,165.49,18.12]
[1747739823834,30.20305602,165.55,165.49,18.12]
[1747739824034,12.84335374,165.54,165.49,18.12]
[1747739824772,12.84335374,165.53,165.49,18.12]
[1747739825271,21.1454809,165.52,165.49,18.12]
[1747739825555,12.84335374,165.51,165.45,18.64964886]
[1747739825766,51.35331076,165.52,165.45,18.64964886]
[1747739825936,21.1454809,165.52,165.45,18.64964886]
[1747739826352,33.98883464,165.52,165.45,18.64964886]
[1747739829451,12.84335374,165.51,165.45,18.64964886]
[1747739829652,33.98883464,165.52,165.45,18.64964886]
[1747739830962,12.84335374,165.51,165.45,18.64964886]
[1747739831138,12.84335374,165.53,165.45,18.64964886]
[1747739832559,137.0,165.54,165.45,18.64964886]
[1747739832856,12.84335374,165.53,165.45,18.64964886]
[1747739833357,21.14420346,165.53,165.45,18.64964886]
[1747739833571,33.9875572,165.53,165.45,18.64964886]
[1747739834172,21.14420346,165.53,165.45,18.64964886]
[1747739836172,6.04120099,165.53,165.49,18.64964886]
[1747739836347,6.04120099,165.53,165.5,18.12]
[1747739837350,64.18494525,165.56,165.5,18.12]
[1747739837542,12.84335374,165.54,165.5,18.12]
[1747739838670,12.84335374,165.55,165.5,18.12]
[1747739838976,21.14292617,165.54,165.5,18.12]
[1747739839163,33.98627991,165.54,165.5,18.12]
[1747739839470,21.14292617,165.54,165.5,18.12]
[1747739840946,6.04083605,165.54,165.51,18.64964886]
[1747739841973,6.04083605,165.54,165.5,18.12]
[1747739842176,33.98627991,165.54,165.5,18.12]
[1747739842471,21.14292617,165.54,165.5,18.12]
[1747739843045,6.04083605,165.54,165.51,44.64964886]
[1747739843454,6.0401063,165.56,165.51,44.64964886]
[1747739844569,6.03901201,165.59,165.51,44.64964886]
[1747739845263,6.03901201,165.59,165.51,50.69151632]
[1747739845466,21.13654205,165.59,165.51,44.64964886]
[1747739845658,21.13654205,165.59,165.51,50.6915796]
[1747739846675,15.09753004,165.59,165.51,50.6915796]
[1747739846970,6.03864734,165.6,165.55,18.64964886]
[1747739847175,6.03864734,165.6,165.57,18.64964886]
[1747739850980,6.03755358,165.63,165.6,18.64964886]
[1747739852383,21.13016179,165.64,165.6,18.64964886]
[1747739854077,21.13016179,165.64,165.61,18.1]
[1747739855699,6.03718908,165.64,165.62,18.64964886]
[1747739856578,6.03682463,165.65,165.62,18.64964886]
[1747739856986,21.1288862,165.65,165.62,18.64964886]
[1747739857182,6.03682463,165.65,165.62,18.64964886]
[1747739858669,21.1277154,165.66,165.62,18.64964886]
[1747739859184,6.03646021,165.66,165.62,44.64964886]
[1747739861395,6.03609585,165.67,165.62,44.64964886]
[1747739866006,6.03609585,165.67,165.66,18.64964886]
[1747739866189,164.92987274,165.72,165.66,18.64964886]
[1747739866190,6.03463882,165.71,165.66,36.74964886]
[1747739866692,21.12123588,165.71,165.66,36.74964886]
[1747739866870,12.84335374,165.7,165.66,18.1]
[1747739867070,12.84335374,165.69,165.66,18.1]
[1747739867792,6.03573153,165.68,165.66,18.1]
[1747739867991,6.03573153,165.68,165.63,26.0]
[1747739868176,18.87908527,165.68,165.63,44.1]
[1747739868575,12.84335374,165.66,165.6,1.5699]
[1747739868785,12.84335374,165.64,165.6,18.64964886]
[1747739869116,12.84335374,165.64,165.6,36.74964886]
[1747739869783,21.13143753,165.63,165.6,36.74964886]
[1747739870197,21.13143753,165.63,165.59,26.0]
[1747739870405,33.97479127,165.63,165.59,44.1]
[1747739870705,33.97479127,165.63,165.58,18.64964886]
[1747739870706,33.97479127,165.63,165.58,18.1]
[1747739875386,12.84335374,165.61,165.58,18.1]
[1747739875706,12.84335374,165.61,165.57,18.1]
[1747739876289,12.84335374,165.61,165.56,36.74964886]
[1747739876485,33.97479127,165.63,165.56,36.74964886]
[1747739876686,21.13143753,165.63,165.6,18.64964886]
[1747739877313,15.09388395,165.63,165.6,18.64964886]
[1747739879616,15.09388395,165.63,165.57,18.64964886]
[1747739880407,12.84335374,165.62,165.56,36.74964886]
[1747739880609,12.84335374,165.61,165.57,18.64964886]
[1747739881118,12.84335374,165.6,165.56,36.74964886]
[1747739881696,21.13398949,165.61,165.56,36.74964886]
[1747739882021,33.97734323,165.61,165.56,36.74964886]
[1747739882211,12.84335374,165.6,165.56,18.1]
[1747739882596,12.84335374,165.6,165.54,18.64964886]
[1747739882597,12.84335374,165.58,165.51,18.64964886]
[1747739882895,26.0,165.51,165.44,1.5768]
[1747739883090,12.84335374,165.49,165.44,1.5768]
[1747739883315,26.0,165.51,165.39,3.14478739]
[1747739883316,38.84335374,165.47,165.39,3.14478739]
[1747739883525,38.84335374,165.47,165.39,18.1]
[1747739883824,44.88674529,165.47,165.41,18.64964886]
[1747739884123,62.39522416,165.47,165.4,3.44896512]
[1747739884317,62.39522416,165.47,165.41,18.1]
[1747739884706,34.44339155,165.47,165.41,18.1]
[1747739885017,34.44339155,165.47,165.41,36.74964886]
[1747739885797,2.4,165.47,165.42,18.64964886]
[1747739887311,32.04156597,165.52,165.42,18.64964886]
[1747739887792,26.0,165.52,165.44,18.64964886]
[1747739888722,38.84335374,165.54,165.44,18.64964886]
[1747739889107,2.4,165.51,165.44,18.64964886]
[1747739889818,2.4,165.51,165.46,18.64964886]
[1747739890019,6.04120099,165.53,165.47,18.12]
[1747739890408,18.88455473,165.53,165.47,18.12]